[Event "RUS-ch Men Rapid 2019"]
[Site "Sochi"]
[Date "2019.10.15"]
[Round "3.21"]
[White "Tsydypov, Zhamsaran"]
[Black "Radchenko, Vladislav Y."]
[Result "1-0"]
[ECO "B07"]
[WhiteElo "2671"]
[BlackElo "2408"]
[Annotator "RC"]
[PlyCount "55"]
[EventDate "2019.10.15"]
[EventType "swiss"]
[EventCountry "RUS"]
[SourceTitle "playchess.com"]
[Source "ChessBase"]
[SourceQuality "1"]
[TimeControl "900+10"]

1. e4 {[%emt 0:00:00]} d6 {[%emt 0:00:00]} 2. d4 {[%emt 0:00:00]} Nf6 {[%emt 0:00:04]} 3. Nc3 {[%emt 0:00:00]} g6 {[%emt 0:00:04]} 4. Be3 {[%emt 0:00:09]} Ng4 {[%emt 0:00:07]} 5. Bg5 {[%emt 0:00:08]} Bg7 {[%emt 0:00:22]} 6. Qd2 {[%emt 0:00:04]} h6 {[%emt 0:00:26]} 7. Bh4 {[%emt 0:00:03]} Nd7 {[%emt 0:00:54]} 8. f3 {[%emt 0:00:16]} Ngf6 {[%emt 0:00:03]} 9. O-O-O {[%emt 0:00:08]} c5 {[%emt 0:00:12]} 10. dxc5 {[%emt 0:00:04]} dxc5 {[%emt 0:01:28]} 11. e5 {[%emt 0:00:24]} Nh5 {[%emt 0:00:37]} 12. g4 {[%emt 0:00:37]} g5 {[%emt 0:00:03]} 13. gxh5 {[%emt 0:00:03]} gxh4 {[%emt 0:00:02]} 14. f4 {[%emt 0:00:01]} a6 {[%emt 0:00:24]} 15. Nf3 {[%emt 0:00:13]} e6 {[%emt 0:00:47]} 16. Ne4 {[%emt 0:00:17]} b6 {[%emt 0:01:30]} 17. Nd6+ {[%emt 0:00:09]} Ke7 {[%emt 0:00:13]} 18. Rg1 {[%emt 0:00:51]} Rg8 {[%emt 0:01:33]} 19. Bd3 {[%emt 0:00:07]} Bh8 {[%emt 0:01:45]} 20. Rxg8 {[%emt 0:00:07]} Qxg8 {[%emt 0:00:04]} 21. Be4 {[%emt 0:00:43]} Ra7 {[%emt 0:00:03]} 22. Bh7 {[%emt 0:02:31]} Qd8 {[%emt 0:00:35]} 23. Nxc8+ {[%emt 0:00:28]} Qxc8 {[%emt 0:00:01]} 24. Qd6+ {[%emt 0:00:01]} Ke8 {[%emt 0:00:10]} 25. Rg1 {[%emt 0:00:08]} Nf8 {[%emt 0:00:32]} 26. Rg8 {[%emt 0:00:02]} Bg7 {[%emt 0:00:02]} 27. Be4 {[%emt 0:00:10]} f5 {[%emt 0:00:20]} 28. exf6 {[%emt 0:00:02]} 1-0

[Event "RUS-ch Men Rapid 2019"]
[Site "Sochi"]
[Date "2019.10.15"]
[Round "3.23"]
[White "Tekeyev, Zaur"]
[Black "Sakaev, Konstantin"]
[Result "0-1"]
[ECO "B51"]
[WhiteElo "2384"]
[BlackElo "2586"]
[Annotator "ChessBase"]
[PlyCount "119"]
[EventDate "2019.10.15"]
[EventType "swiss"]
[EventCountry "RUS"]
[SourceTitle "playchess.com"]
[Source "ChessBase"]
[SourceQuality "1"]
[TimeControl "900+10"]

1. e4 {[%emt 0:00:00]} c5 {[%emt 0:00:00]} 2. Nf3 {[%emt 0:00:00]} d6 {[%emt 0:00:00]} 3. Bb5+ {[%emt 0:00:05]} Nd7 {[%emt 0:00:00]} 4. a4 {[%emt 0:00:40]} Ngf6 {[%emt 0:00:10]} 5. Nc3 {[%emt 0:00:03]} g6 {[%emt 0:00:19]} 6. a5 {[%emt 0:00:19]} a6 {[%emt 0:00:41]} 7. Bc4 {[%emt 0:00:02]} e6 {[%emt 0:02:55]} 8. d3 {[%emt 0:01:34]} Bg7 {[%emt 0:00:10]} 9. O-O {[%emt 0:00:09]} O-O {[%emt 0:00:03]} 10. h3 {[%emt 0:00:12]} Qc7 {[%emt 0:00:30]} 11. Re1 {[%emt 0:00:15]} Ne5 {[%emt 0:01:49]} 12. Nxe5 {[%emt 0:00:26]} dxe5 {[%emt 0:00:01]} 13. Bd2 {[%emt 0:00:22]} Bd7 {[%emt 0:00:09]} 14. Na4 {[%emt 0:01:12]} Rad8 {[%emt 0:02:07]} 15. b4 {[%emt 0:01:44]} cxb4 {[%emt 0:00:32]} 16. Bxb4 {[%emt 0:00:18]} Rfe8 {[%emt 0:00:02]} 17. Qb1 {[%emt 0:00:44]} Bc6 {[%emt 0:00:23]} 18. Nb6 {[%emt 0:00:40]} Nh5 {[%emt 0:01:01]} 19. Qa2 {[%emt 0:02:38]} Nf4 {[%emt 0:00:13]} 20. Bb3 {[%emt 0:00:56]} Bf8 {[%emt 0:00:14]} 21. Bxf8 {[%emt 0:00:54]} Rxf8 {[%emt 0:00:02]} 22. Ba4 {[%emt 0:00:06]} Qe7 {[%emt 0:03:21]} 23. g3 {[%emt 0:01:02]} Nxh3+ {[%emt 0:00:17]} 24. Kg2 {[%emt 0:00:01]} Ng5 {[%emt 0:01:04]} 25. Bxc6 {[%emt 0:00:06]} Qf6 {[%emt 0:00:52]} 26. Re3 {[%emt 0:01:28]} bxc6 {[%emt 0:00:02]} 27. Qc4 {[%emt 0:00:01]} Qg7 {[%emt 0:00:41]} 28. Rae1 {[%emt 0:00:47]} f5 {[%emt 0:00:05]} 29. f4 {[%emt 0:02:10]} exf4 {[%emt 0:00:31]} 30. gxf4 {[%emt 0:00:15]} Nf7 {[%emt 0:01:24]} 31. Qxe6 {[%emt 0:00:04]} fxe4 {[%emt 0:00:17]} 32. Rxe4 {[%emt 0:00:28]} Rd6 {[%emt 0:00:12]} 33. Qc4 {[%emt 0:00:06]} Qf6 {[%emt 0:00:07]} 34. Re6 {[%emt 0:00:28]} Qh4 {[%emt 0:00:12]} 35. Rxd6 {[%emt 0:00:16]} Qxe1 {[%emt 0:00:01]} 36. Re6 {[%emt 0:00:05]} Qd2+ {[%emt 0:00:19]} 37. Kg3 {[%emt 0:00:08]} Qd1 {[%emt 0:00:02]} 38. Kg2 {[%emt 0:00:22]} Qg4+ {[%emt 0:00:06]} 39. Kf2 {[%emt 0:00:04]} Qh4+ {[%emt 0:00:06]} 40. Ke2 {[%emt 0:00:04]} Kg7 {[%emt 0:00:06]} 41. Qd4+ {[%emt 0:00:07]} Kh6 {[%emt 0:00:02]} 42. Qe3 {[%emt 0:00:19]} Nd8 {[%emt 0:00:39]} 43. Re7 {[%emt 0:00:17]} Rxf4 {[%emt 0:00:07]} 44. Re4 {[%emt 0:00:08]} g5 {[%emt 0:00:07]} 45. Rxf4 {[%emt 0:00:12]} gxf4 {[%emt 0:00:01]} 46. Qe5 {[%emt 0:00:09]} Qh5+ {[%emt 0:00:05]} 47. Qxh5+ {[%emt 0:00:04]} Kxh5 {[%emt 0:00:01]} 48. Kf3 {[%emt 0:00:11]} Kg5 {[%emt 0:00:04]} 49. d4 {[%emt 0:00:17]} Ne6 {[%emt 0:00:41]} 50. Ke4 {[%emt 0:00:07]} Kg4 {[%emt 0:00:03]} 51. Nc4 {[%emt 0:00:02]} Ng5+ {[%emt 0:00:04]} 52. Kd3 {[%emt 0:00:16]} Kg3 {[%emt 0:00:09]} 53. Nd2 {[%emt 0:00:15]} f3 {[%emt 0:00:19]} 54. c4 {[%emt 0:00:02]} f2 {[%emt 0:00:08]} 55. d5 {[%emt 0:00:15]} cxd5 {[%emt 0:00:07]} 56. cxd5 {[%emt 0:00:07]} Kg2 {[%emt 0:00:04]} 57. Ke2 {[%emt 0:00:16]} Ne4 {[%emt 0:00:16]} 58. Nf1 {[%emt 0:00:07]} Nc3+ {[%emt 0:00:07]} 59. Kd3 {[%emt 0:00:12]} Kxf1 {[%emt 0:00:15]} 60. Kd4 0-1

[Event "RUS-ch Men Rapid 2019"]
[Site "Sochi"]
[Date "2019.10.15"]
[Round "3.26"]
[White "Savchenko, Boris"]
[Black "Usmanov, Ilnur"]
[Result "1-0"]
[ECO "B10"]
[WhiteElo "2560"]
[BlackElo "2144"]
[Annotator "ChessBase"]
[PlyCount "48"]
[EventDate "2019.10.15"]
[EventType "swiss"]
[EventCountry "RUS"]
[SourceTitle "playchess.com"]
[Source "ChessBase"]
[SourceQuality "1"]
[TimeControl "900+10"]

1. e4 {[%emt 0:00:00]} c6 {[%emt 0:00:00]} 2. Nc3 {[%emt 0:00:00]} d5 {[%emt 0:00:00]} 3. Nf3 {[%emt 0:00:00]} dxe4 {[%emt 0:00:14]} 4. Nxe4 {[%emt 0:00:00]} Nf6 {[%emt 0:00:02]} 5. Qe2 {[%emt 0:00:03]} Nxe4 {[%emt 0:00:36]} 6. Qxe4 {[%emt 0:00:02]} Nd7 {[%emt 0:00:12]} 7. Bc4 {[%emt 0:00:02]} Nf6 {[%emt 0:00:30]} 8. Ne5 {[%emt 0:00:03]} e6 {[%emt 0:00:11]} 9. Qe2 {[%emt 0:00:02]} Be7 {[%emt 0:00:39]} 10. b3 {[%emt 0:00:24]} O-O {[%emt 0:00:34]} 11. Bb2 {[%emt 0:00:03]} Qc7 {[%emt 0:01:38]} 12. f4 {[%emt 0:00:19]} b5 {[%emt 0:02:53]} 13. Bd3 {[%emt 0:00:02]} a6 {[%emt 0:00:07]} 14. g4 {[%emt 0:03:23]} Nd5 {[%emt 0:01:44]} 15. Qe4 {[%emt 0:00:26]} f5 {[%emt 0:00:38]} 16. gxf5 {[%emt 0:01:20]} exf5 {[%emt 0:00:09]} 17. Qd4 {[%emt 0:01:52]} Bh4+ {[%emt 0:00:28]} 18. Kd1 {[%emt 0:00:02]} Bf6 {[%emt 0:00:10]} 19. c4 {[%emt 0:00:10]} Nb4 {[%emt 0:00:30]} 20. cxb5 {[%emt 0:02:56]} Nxd3 {[%emt 0:00:26]} 21. Qxd3 {[%emt 0:00:03]} cxb5 {[%emt 0:01:11]} 22. Qd5+ {[%emt 0:00:10]} Kh8 {[%emt 0:02:08]} 23. Qxa8 {[%emt 0:00:03]} Rd8 {[%emt 0:00:06]} 24. Rc1 {[%emt 0:00:03]} Rf8 1-0

[Event "RUS-ch Men Rapid 2019"]
[Site "Sochi"]
[Date "2019.10.15"]
[Round "3.32"]
[White "Frolov, Aleksey G."]
[Black "Nesterov, Arseniy"]
[Result "1/2-1/2"]
[ECO "C78"]
[WhiteElo "2093"]
[BlackElo "2484"]
[Annotator "ChessBase"]
[PlyCount "53"]
[EventDate "2019.10.15"]
[EventType "swiss"]
[EventCountry "RUS"]
[SourceTitle "playchess.com"]
[Source "ChessBase"]
[SourceQuality "1"]
[TimeControl "900+10"]

1. e4 e5 2. Nf3 Nc6 3. Bb5 a6 4. Ba4 Nf6 5. O-O b5 6. Bb3 Bc5 7. c3 d6 8. d4 Bb6 9. dxe5 Nxe5 10. Nxe5 dxe5 11. Qxd8+ Kxd8 12. Bg5 Ke7 13. Nd2 h6 14. Bh4 Bb7 15. Nf3 g5 16. Bg3 Nxe4 17. Nxe5 Nxg3 18. hxg3 Kf6 19. Rae1 Kg7 20. Nxf7 Rhf8 21. Re7 Rae8 22. Rfe1 Rxe7 23. Rxe7 Kf6 24. Re6+ Kg7 25. Re7 Kf6 26. Re6+ Kg7 27. Re7 1/2-1/2

[Event "RUS-ch Men Rapid 2019"]
[Site "Sochi"]
[Date "2019.10.15"]
[Round "4.3"]
[White "Goryachkina, Aleksandra"]
[Black "Lysyj, Igor"]
[Result "1/2-1/2"]
[ECO "C44"]
[WhiteElo "2504"]
[BlackElo "2588"]
[Annotator "ChessBase"]
[PlyCount "30"]
[EventDate "2019.10.15"]
[EventType "swiss"]
[EventCountry "RUS"]
[SourceTitle "playchess.com"]
[Source "ChessBase"]
[SourceQuality "1"]
[TimeControl "900+10"]

1. e4 {[%emt 0:00:00]} e5 {[%emt 0:00:00]} 2. Nf3 {[%emt 0:00:00]} Nc6 {[%emt 0:00:00]} 3. d4 {[%emt 0:00:06]} exd4 {[%emt 0:00:00]} 4. Bc4 {[%emt 0:00:04]} Bc5 {[%emt 0:00:00]} 5. Ng5 {[%emt 0:00:10]} Nh6 {[%emt 0:00:01]} 6. Nxf7 {[%emt 0:00:12]} Nxf7 {[%emt 0:00:09]} 7. Bxf7+ {[%emt 0:00:01]} Kxf7 {[%emt 0:00:02]} 8. Qh5+ {[%emt 0:00:03]} g6 {[%emt 0:00:14]} 9. Qxc5 {[%emt 0:00:02]} d5 {[%emt 0:00:06]} 10. O-O {[%emt 0:00:04]} dxe4 {[%emt 0:00:04]} 11. c3 {[%emt 0:00:10]} Qd6 {[%emt 0:00:04]} 12. cxd4 {[%emt 0:02:08]} Nxd4 {[%emt 0:00:06]} 13. Qxd6 {[%emt 0:01:41]} Ne2+ {[%emt 0:00:02]} 14. Kh1 {[%emt 0:00:03]} cxd6 {[%emt 0:00:01]} 15. Be3 {[%emt 0:01:54]} b6 {[%emt 0:00:07]} 1/2-1/2

[Event "RUS-ch Men Rapid 2019"]
[Site "Sochi"]
[Date "2019.10.15"]
[Round "4.4"]
[White "Oganian, Miran"]
[Black "Pridorozhni, Aleksei"]
[Result "1/2-1/2"]
[ECO "E09"]
[WhiteElo "2436"]
[BlackElo "2554"]
[Annotator "ChessBase"]
[PlyCount "145"]
[EventDate "2019.10.15"]
[EventType "swiss"]
[EventCountry "RUS"]
[SourceTitle "playchess.com"]
[Source "ChessBase"]
[SourceQuality "1"]
[TimeControl "900+10"]

1. d4 {[%emt 0:00:00]} d5 {[%emt 0:00:00]} 2. c4 {[%emt 0:00:00]} e6 {[%emt 0:00:00]} 3. Nf3 {[%emt 0:00:00]} Nf6 {[%emt 0:00:07]} 4. g3 {[%emt 0:00:00]} Be7 {[%emt 0:00:02]} 5. Bg2 {[%emt 0:00:01]} O-O {[%emt 0:00:03]} 6. O-O {[%emt 0:00:03]} Nbd7 {[%emt 0:00:37]} 7. Qc2 {[%emt 0:00:11]} c6 {[%emt 0:00:43]} 8. Nbd2 {[%emt 0:00:28]} b6 {[%emt 0:00:12]} 9. e4 {[%emt 0:00:02]} dxe4 10. Nxe4 {[%emt 0:00:02]} Bb7 {[%emt 0:00:14]} 11. Rd1 {[%emt 0:00:04]} Qc8 {[%emt 0:00:50]} 12. Nxf6+ {[%emt 0:00:08]} Nxf6 {[%emt 0:00:09]} 13. c5 {[%emt 0:00:09]} Nd5 {[%emt 0:00:08]} 14. Bg5 {[%emt 0:00:18]} Qd8 {[%emt 0:00:05]} 15. Bxe7 {[%emt 0:00:06]} Qxe7 {[%emt 0:00:01]} 16. Rac1 {[%emt 0:00:23]} Rac8 {[%emt 0:00:21]} 17. a3 {[%emt 0:00:12]} Rfd8 {[%emt 0:00:19]} 18. Ne5 {[%emt 0:00:13]} bxc5 {[%emt 0:01:19]} 19. Qxc5 {[%emt 0:00:16]} Qxc5 {[%emt 0:00:03]} 20. Rxc5 {[%emt 0:00:33]} Ne7 {[%emt 0:00:07]} 21. Ra5 {[%emt 0:01:52]} a6 {[%emt 0:00:03]} 22. Rc5 {[%emt 0:01:30]} f6 {[%emt 0:01:03]} 23. Nf3 {[%emt 0:02:06]} Rd6 {[%emt 0:00:25]} 24. Re1 {[%emt 0:00:30]} Kf7 {[%emt 0:00:28]} 25. Bf1 {[%emt 0:00:08]} Rcd8 {[%emt 0:00:41]} 26. Bc4 {[%emt 0:00:05]} Nd5 {[%emt 0:00:16]} 27. b4 {[%emt 0:00:46]} Bc8 {[%emt 0:00:29]} 28. Bb3 {[%emt 0:00:50]} Nc7 {[%emt 0:00:07]} 29. Rec1 {[%emt 0:02:09]} Bd7 {[%emt 0:00:15]} 30. Ra5 {[%emt 0:00:21]} Rb8 {[%emt 0:00:09]} 31. Bc4 {[%emt 0:00:13]} Rb6 {[%emt 0:00:06]} 32. Bf1 {[%emt 0:02:25]} Nb5 {[%emt 0:00:16]} 33. Nd2 {[%emt 0:00:09]} Rxd4 {[%emt 0:00:24]} 34. Nc4 {[%emt 0:00:12]} Rb7 {[%emt 0:01:39]} 35. Rxa6 {[%emt 0:00:02]} Nc7 {[%emt 0:00:02]} 36. Na5 {[%emt 0:00:31]} Nxa6 {[%emt 0:00:07]} 37. Nxb7 {[%emt 0:00:03]} Nb8 {[%emt 0:00:34]} 38. Nc5 {[%emt 0:00:14]} Ke7 {[%emt 0:00:09]} 39. Nb3 {[%emt 0:00:42]} Rd5 {[%emt 0:00:14]} 40. Bc4 {[%emt 0:00:19]} Re5 {[%emt 0:00:06]} 41. Rd1 {[%emt 0:00:20]} Bc8 {[%emt 0:00:23]} 42. Na5 {[%emt 0:00:47]} g5 {[%emt 0:00:05]} 43. Kg2 {[%emt 0:00:53]} h5 {[%emt 0:00:03]} 44. h3 {[%emt 0:00:37]} h4 {[%emt 0:00:18]} 45. gxh4 {[%emt 0:00:09]} gxh4 {[%emt 0:00:02]} 46. Rd4 {[%emt 0:00:05]} Rh5 {[%emt 0:00:04]} 47. Rg4 {[%emt 0:00:16]} e5 {[%emt 0:00:31]} 48. Rg7+ {[%emt 0:00:15]} Kd6 {[%emt 0:00:02]} 49. Nb7+ {[%emt 0:00:36]} Bxb7 {[%emt 0:00:02]} 50. Rxb7 {[%emt 0:00:02]} Nd7 {[%emt 0:00:02]} 51. a4 {[%emt 0:00:06]} e4 {[%emt 0:01:08]} 52. a5 {[%emt 0:00:09]} Ne5 {[%emt 0:00:09]} 53. a6 {[%emt 0:00:52]} Rh8 {[%emt 0:01:19]} 54. a7 {[%emt 0:00:03]} Ra8 {[%emt 0:00:02]} 55. Be2 {[%emt 0:00:16]} f5 {[%emt 0:00:03]} 56. f3 {[%emt 0:00:11]} Ng6 {[%emt 0:00:49]} 57. fxe4 {[%emt 0:00:04]} fxe4 {[%emt 0:00:02]} 58. Kf2 {[%emt 0:00:21]} Nf4 {[%emt 0:00:07]} 59. Bg4 {[%emt 0:00:05]} Ke5 {[%emt 0:00:03]} 60. Re7+ {[%emt 0:00:24]} Kd4 {[%emt 0:00:06]} 61. Bf5 {[%emt 0:00:06]} Nd5 {[%emt 0:00:11]} 62. Rxe4+ {[%emt 0:00:06]} Kc3 {[%emt 0:00:01]} 63. Rxh4 {[%emt 0:00:16]} Rxa7 {[%emt 0:00:02]} 64. Rh7 {[%emt 0:00:10]} Ra8 {[%emt 0:00:17]} 65. Kg3 {[%emt 0:00:12]} Rg8+ {[%emt 0:00:07]} 66. Kh2 {[%emt 0:00:11]} Kxb4 {[%emt 0:00:08]} 67. Be6 {[%emt 0:00:11]} Rd8 {[%emt 0:00:02]} 68. Rd7 {[%emt 0:00:06]} Rxd7 {[%emt 0:00:09]} 69. Bxd7 {[%emt 0:00:01]} c5 {[%emt 0:00:01]} 70. Be6 {[%emt 0:00:04]} Nf4 {[%emt 0:00:02]} 71. Bf7 {[%emt 0:00:03]} Nxh3 {[%emt 0:00:02]} 72. Kxh3 {[%emt 0:00:01]} c4 {[%emt 0:00:01]} 73. Bxc4 {[%emt 0:00:01]} 1/2-1/2

[Event "RUS-ch Men Rapid 2019"]
[Site "Sochi"]
[Date "2019.10.15"]
[Round "4.5"]
[White "Ulybin, Mikhail"]
[Black "Khismatullin, Denis"]
[Result "1/2-1/2"]
[ECO "A40"]
[WhiteElo "2455"]
[BlackElo "2550"]
[Annotator "ChessBase"]
[PlyCount "148"]
[EventDate "2019.10.15"]
[EventType "swiss"]
[EventCountry "RUS"]
[SourceTitle "playchess.com"]
[Source "ChessBase"]
[SourceQuality "1"]
[TimeControl "900+10"]

1. d4 {[%emt 0:00:00]} Nf6 {[%emt 0:00:00]} 2. c4 {[%emt 0:00:03]} e6 {[%emt 0:00:02]} 3. g3 {[%emt 0:00:10]} Bb4+ {[%emt 0:01:06]} 4. Bd2 {[%emt 0:00:14]} Be7 {[%emt 0:00:03]} 5. Bg2 {[%emt 0:00:10]} d5 {[%emt 0:00:08]} 6. Nf3 {[%emt 0:00:08]} O-O {[%emt 0:00:04]} 7. O-O {[%emt 0:00:09]} c6 {[%emt 0:00:02]} 8. Qb3 {[%emt 0:00:13]} Nbd7 {[%emt 0:00:25]} 9. Bf4 {[%emt 0:00:26]} Nh5 {[%emt 0:00:38]} 10. Bc1 {[%emt 0:00:10]} Nhf6 {[%emt 0:00:47]} 11. Bf4 {[%emt 0:00:22]} Nh5 {[%emt 0:01:42]} 12. Bc1 {[%emt 0:00:08]} b6 {[%emt 0:01:37]} 13. Nc3 {[%emt 0:02:23]} Bb7 {[%emt 0:00:29]} 14. e4 {[%emt 0:03:00]} dxc4 {[%emt 0:00:57]} 15. Qxc4 {[%emt 0:00:07]} b5 {[%emt 0:00:09]} 16. Qb3 {[%emt 0:02:15]} b4 {[%emt 0:00:24]} 17. Na4 {[%emt 0:00:36]} Nhf6 {[%emt 0:04:04]} 18. Be3 {[%emt 0:01:42]} Nxe4 {[%emt 0:01:51]} 19. Ne5 {[%emt 0:00:14]} Ndf6 {[%emt 0:00:47]} 20. Qc2 {[%emt 0:02:49]} Qd5 {[%emt 0:01:10]} 21. f3 {[%emt 0:00:35]} Nd6 {[%emt 0:00:10]} 22. f4 {[%emt 0:01:41]} Qb5 {[%emt 0:00:13]} 23. Nxc6 {[%emt 0:00:42]} Nf5 {[%emt 0:00:33]} 24. Bf2 {[%emt 0:00:23]} Rac8 {[%emt 0:00:30]} 25. Rfc1 {[%emt 0:00:12]} Bxc6 {[%emt 0:00:55]} 26. Bxc6 {[%emt 0:00:03]} Qa6 {[%emt 0:00:04]} 27. Qc4 {[%emt 0:00:18]} Qxc4 {[%emt 0:00:14]} 28. Rxc4 {[%emt 0:00:03]} Ng4 {[%emt 0:00:01]} 29. d5 {[%emt 0:00:14]} Nxf2 {[%emt 0:00:29]} 30. Kxf2 {[%emt 0:00:03]} exd5 {[%emt 0:00:09]} 31. Bxd5 {[%emt 0:00:03]} Rcd8 {[%emt 0:00:03]} 32. Rd1 {[%emt 0:00:10]} Bf6 {[%emt 0:00:04]} 33. Rxb4 {[%emt 0:00:09]} Rfe8 {[%emt 0:00:20]} 34. Rd3 {[%emt 0:00:18]} a6 {[%emt 0:00:14]} 35. Re4 {[%emt 0:00:20]} Rxe4 {[%emt 0:00:12]} 36. Bxe4 {[%emt 0:00:02]} Nd4 {[%emt 0:00:01]} 37. b3 {[%emt 0:00:17]} g6 {[%emt 0:00:06]} 38. Nc3 {[%emt 0:00:11]} Bg7 {[%emt 0:00:20]} 39. Nd5 {[%emt 0:00:08]} Kf8 {[%emt 0:00:04]} 40. Rd2 {[%emt 0:00:11]} Rc8 {[%emt 0:00:14]} 41. Bd3 {[%emt 0:00:07]} a5 {[%emt 0:00:10]} 42. Nb6 {[%emt 0:00:15]} Rc7 {[%emt 0:00:15]} 43. Nc4 {[%emt 0:00:05]} Rc5 {[%emt 0:00:04]} 44. Bf1 {[%emt 0:00:09]} Bf6 {[%emt 0:00:07]} 45. Ke3 {[%emt 0:00:10]} Nf5+ {[%emt 0:00:08]} 46. Ke4 {[%emt 0:00:05]} Ne7 {[%emt 0:00:12]} 47. Rd8+ {[%emt 0:00:10]} Kg7 {[%emt 0:00:02]} 48. Ra8 {[%emt 0:00:10]} Bc3 {[%emt 0:00:03]} 49. Ra7 {[%emt 0:00:16]} Kf8 {[%emt 0:00:27]} 50. Nb6 {[%emt 0:00:15]} Rc6 {[%emt 0:00:10]} 51. Nd7+ {[%emt 0:00:10]} Kg7 {[%emt 0:00:03]} 52. Bc4 {[%emt 0:00:09]} Bb4 {[%emt 0:00:27]} 53. Ne5 {[%emt 0:00:13]} Rc8 {[%emt 0:00:09]} 54. Bxf7 {[%emt 0:00:09]} Rc2 {[%emt 0:00:03]} 55. Bc4 {[%emt 0:00:05]} Rxh2 {[%emt 0:00:12]} 56. Nc6 {[%emt 0:00:13]} Kf6 {[%emt 0:00:04]} 57. Nxb4 {[%emt 0:00:06]} axb4 {[%emt 0:00:02]} 58. Ra6+ {[%emt 0:00:06]} Kg7 {[%emt 0:00:03]} 59. Ra7 {[%emt 0:00:03]} Kf8 {[%emt 0:00:25]} 60. g4 {[%emt 0:00:03]} h5 {[%emt 0:00:08]} 61. Ra8+ {[%emt 0:00:10]} Kg7 {[%emt 0:00:01]} 62. Ra7 {[%emt 0:00:13]} Kf8 {[%emt 0:00:02]} 63. Ra8+ {[%emt 0:00:11]} Kg7 {[%emt 0:00:02]} 64. Re8 {[%emt 0:00:06]} Nc6 {[%emt 0:00:17]} 65. g5 {[%emt 0:00:30]} Rxa2 {[%emt 0:00:13]} 66. Re6 {[%emt 0:00:15]} Na5 {[%emt 0:00:04]} 67. Ra6 {[%emt 0:00:09]} h4 {[%emt 0:00:23]} 68. Ra7+ {[%emt 0:00:08]} Kf8 {[%emt 0:00:02]} 69. Kf3 {[%emt 0:00:15]} h3 {[%emt 0:00:34]} 70. Bd5 {[%emt 0:00:09]} h2 {[%emt 0:00:07]} 71. Rh7 {[%emt 0:00:09]} Nxb3 {[%emt 0:00:14]} 72. Bxb3 {[%emt 0:00:13]} Ra3 {[%emt 0:00:05]} 73. Ke4 {[%emt 0:00:07]} Rxb3 {[%emt 0:00:03]} 74. Rxh2 {[%emt 0:00:08]} Rc3 {[%emt 0:00:21]} 1/2-1/2

[Event "RUS-ch Men Rapid 2019"]
[Site "Sochi"]
[Date "2019.10.15"]
[Round "4.7"]
[White "Ponkratov, Pavel"]
[Black "Samusenko, Maksim"]
[Result "0-1"]
[ECO "B01"]
[WhiteElo "2674"]
[BlackElo "2445"]
[Annotator "RC"]
[PlyCount "146"]
[EventDate "2019.10.15"]
[EventType "swiss"]
[EventCountry "RUS"]
[SourceTitle "playchess.com"]
[Source "ChessBase"]
[SourceQuality "1"]
[TimeControl "900+10"]

1. e4 {[%emt 0:00:00]} d5 {[%emt 0:00:00]} 2. exd5 {[%emt 0:00:00]} Nf6 {[%emt 0:00:00]} 3. Bb5+ {[%emt 0:00:00]} Bd7 {[%emt 0:00:00]} 4. Be2 {[%emt 0:00:00]} Nxd5 {[%emt 0:00:01]} 5. d4 {[%emt 0:00:00]} Bf5 {[%emt 0:00:02]} 6. Nf3 {[%emt 0:00:01]} e6 {[%emt 0:00:01]} 7. O-O {[%emt 0:00:02]} Be7 {[%emt 0:00:02]} 8. c4 {[%emt 0:00:12]} Nb4 {[%emt 0:00:06]} 9. Na3 {[%emt 0:00:21]} O-O {[%emt 0:00:02]} 10. Be3 {[%emt 0:00:01]} c6 {[%emt 0:00:57]} 11. Qb3 {[%emt 0:00:07]} a5 {[%emt 0:00:05]} 12. Rfd1 {[%emt 0:00:03]} Nd7 {[%emt 0:00:18]} 13. h3 {[%emt 0:00:22]} Qc7 {[%emt 0:01:24]} 14. Rdc1 {[%emt 0:00:52]} Bg6 {[%emt 0:03:27]} 15. Nb1 {[%emt 0:00:13]} e5 {[%emt 0:01:21]} 16. a3 {[%emt 0:01:07]} exd4 {[%emt 0:00:43]} 17. Bxd4 {[%emt 0:00:02]} Na6 {[%emt 0:00:14]} 18. Qc3 {[%emt 0:00:01]} Nac5 {[%emt 0:01:18]} 19. Nbd2 {[%emt 0:00:01]} Ne6 {[%emt 0:00:14]} 20. b4 {[%emt 0:02:34]} axb4 {[%emt 0:00:24]} 21. axb4 {[%emt 0:00:01]} Nxd4 {[%emt 0:01:35]} 22. Nxd4 {[%emt 0:00:03]} Bf6 {[%emt 0:00:16]} 23. Rxa8 {[%emt 0:00:04]} Rxa8 {[%emt 0:00:03]} 24. N2f3 {[%emt 0:00:09]} c5 {[%emt 0:00:37]} 25. bxc5 {[%emt 0:00:04]} Nxc5 {[%emt 0:00:04]} 26. Qb4 {[%emt 0:00:36]} Rd8 {[%emt 0:01:05]} 27. Nb5 {[%emt 0:00:10]} Qb6 {[%emt 0:00:24]} 28. Qa3 {[%emt 0:00:40]} h6 {[%emt 0:00:37]} 29. Qe3 {[%emt 0:00:16]} Qc6 {[%emt 0:00:39]} 30. Nfd4 {[%emt 0:01:53]} Qe4 {[%emt 0:01:04]} 31. Qxe4 {[%emt 0:00:26]} Bxe4 {[%emt 0:00:04]} 32. Nf3 {[%emt 0:00:03]} Bc6 {[%emt 0:00:14]} 33. Kf1 {[%emt 0:01:29]} Ne4 {[%emt 0:00:15]} 34. Rd1 {[%emt 0:00:48]} Ra8 {[%emt 0:00:41]} 35. Bd3 {[%emt 0:00:44]} Nc5 {[%emt 0:00:30]} 36. Bc2 {[%emt 0:01:06]} Bxf3 {[%emt 0:00:20]} 37. gxf3 {[%emt 0:00:02]} Ra2 {[%emt 0:00:04]} 38. Rd2 {[%emt 0:00:06]} g6 {[%emt 0:00:10]} 39. Nd6 {[%emt 0:00:44]} Ne6 {[%emt 0:00:40]} 40. Ne4 {[%emt 0:00:28]} Bd4 {[%emt 0:00:12]} 41. Bb3 {[%emt 0:01:35]} Ra3 {[%emt 0:00:01]} 42. Bd1 {[%emt 0:00:05]} Ra1 {[%emt 0:00:26]} 43. f4 {[%emt 0:00:13]} b6 {[%emt 0:00:14]} 44. Kg1 {[%emt 0:00:40]} Nxf4 {[%emt 0:00:07]} 45. h4 {[%emt 0:00:14]} h5 {[%emt 0:00:27]} 46. Ng5 {[%emt 0:00:09]} Bf6 {[%emt 0:00:13]} 47. Nf3 {[%emt 0:00:07]} Ne6 {[%emt 0:00:09]} 48. Kg2 {[%emt 0:00:04]} Rc1 {[%emt 0:00:12]} 49. Rd6 {[%emt 0:00:04]} Be7 {[%emt 0:00:12]} 50. Rd7 {[%emt 0:00:13]} Bf6 {[%emt 0:00:10]} 51. Ba4 {[%emt 0:00:24]} Rxc4 {[%emt 0:00:09]} 52. Ra7 {[%emt 0:00:29]} Rc7 {[%emt 0:00:10]} 53. Ra8+ {[%emt 0:00:04]} Kg7 {[%emt 0:00:01]} 54. Rb8 {[%emt 0:00:04]} Nf4+ {[%emt 0:00:44]} 55. Kh2 {[%emt 0:00:32]} Rc4 {[%emt 0:00:04]} 56. Bb5 {[%emt 0:00:17]} Rb4 {[%emt 0:00:09]} 57. Be8 {[%emt 0:00:01]} Nd5 {[%emt 0:00:23]} 58. Rb7 {[%emt 0:00:04]} Ne7 {[%emt 0:00:04]} 59. Kg2 {[%emt 0:00:22]} Rg4+ {[%emt 0:00:12]} 60. Kf1 {[%emt 0:00:01]} Rf4 {[%emt 0:00:04]} 61. Kg2 {[%emt 0:00:07]} Kf8 {[%emt 0:00:14]} 62. Rb8 {[%emt 0:00:02]} Bxh4 {[%emt 0:00:11]} 63. Bd7+ {[%emt 0:00:25]} Kg7 {[%emt 0:00:01]} 64. Rxb6 {[%emt 0:00:01]} Bf6 {[%emt 0:00:09]} 65. Rb7 {[%emt 0:00:03]} g5 {[%emt 0:00:18]} 66. Nd2 {[%emt 0:00:08]} Bc3 {[%emt 0:00:19]} 67. Nf1 {[%emt 0:00:07]} Bd4 {[%emt 0:00:10]} 68. f3 {[%emt 0:00:05]} Ng6 {[%emt 0:00:04]} 69. Ng3 {[%emt 0:00:36]} Nh4+ {[%emt 0:00:02]} 70. Kh1 {[%emt 0:00:06]} Rxf3 {[%emt 0:00:06]} 71. Nxh5+ {[%emt 0:00:08]} Kg6 {[%emt 0:00:06]} 72. Bg4 {[%emt 0:00:02]} Rf1+ {[%emt 0:00:04]} 73. Kh2 {[%emt 0:00:01]} Be5+ {[%emt 0:00:01]} 0-1